Cogmind - Beta 16 @@@ ROGUE MODE // 2025.12.19 @ 20:13:34 Player: xzenfar Result: Destroyed by H-61 Shepherd with Heavy Assault Cannon Performance ------------- Evolutions (2) 1000 Regions Visited (4) 800 Robots Destroyed (20) 100 Value Destroyed (676) 676 Prototype IDs (4) 80 Alien Tech Used (0) 0 Bonus (0) 0 TOTAL SCORE: 2656 Bonus ------- None Cogmind --------- Core Integrity 0/550 Matter 300/300 Energy 274/280 System Corruption 1% Temperature Cool (3) Movement Walking (115) Location -8/Materials Parts ------- > --- POWER (1) -------- Heavy Ion Engine > --- PROPULSION (3) --- Aluminum Leg Improved Aluminum Leg Carbon-fiber Leg > --- UTILITY (4) ------ Small Storage Unit Advanced Weight Redist. System > --- WEAPON (3) ------- Pulse Rifle Heavy Particle Gun > --- INVENTORY (8) ---- Improved Ion Engine Aluminum Leg Improved Heat Sink Peak State ------------ > --- POWER ------------ Heavy Ion Engine > --- PROPULSION ------- Aluminum Leg Improved Aluminum Leg Carbon-fiber Leg > --- UTILITY ---------- Small Storage Unit Advanced Weight Redist. System Trap Scanner Advanced Targeting Computer > --- WEAPON ----------- Pulse Rifle Heavy Particle Gun High-powered Shotgun > --- INVENTORY -------- Improved Ion Engine Aluminum Leg Improved Heat Sink [Rating: 29] Favorites ----------- Power Light Ion Engine Engine Light Ion Engine Propulsion Aluminum Leg Leg Aluminum Leg Utility Small Storage Unit Device ECM Suite Storage Small Storage Unit Processor Advanced Targeting Computer Weapon Assault Rifle Energy Gun Pulse Rifle Energy Cannon Ion Cannon Ballistic Gun Assault Rifle Build | -11 -10 -9 -9 -8 ------- Run | Yrd Mat Mat Min Mat Slots Evolved 4 | . . 2 . 2 Power . | . . . . . Propulsion 1 | . . 1 . . Utility 2 | . . 1 . 1 Weapon 1 | . . . . 1 Parts Attached 35 | 6 6 2 . 21 Power 5 | 1 1 . . 3 Engine 5 | 1 1 . . 3 Core . | . . . . . Reactor . | . . . . . Propulsion 9 | 2 1 1 . 5 Treads . | . . . . . Leg 9 | 2 1 1 . 5 Wheel . | . . . . . Hover . | . . . . . Flight . | . . . . . Utility 10 | 1 2 1 . 6 Device 8 | . 2 1 . 5 Storage 1 | 1 . . . . Processor 1 | . . . . 1 Hackware . | . . . . . Protection . | . . . . . Artifact . | . . . . . Weapon 11 | 2 2 . . 7 Energy Gun 7 | 1 1 . . 5 Energy Cannon 1 | . . . . 1 Ballistic Gun 3 | 1 1 . . 1 Ballistic Cannon . | . . . . . Launcher . | . . . . . Special Weapon . | . . . . . Impact Weapon . | . . . . . Slashing Weapon . | . . . . . Piercing Weapon . | . . . . . Special Melee Weapon . | . . . . . Unidentified Prototypes 2 | . . . . 2 Parts Lost 24 | . 4 1 . 19 Power 3 | . 1 . . 2 Propulsion 6 | . 1 1 . 4 Utility 8 | . 1 . . 7 Weapon 7 | . 1 . . 6 Highest Loss Streak 12 | . 4 1 . 12 To Critical Strikes 1 | . 1 . . . Average Backups 4 | 1 3 3 3 5 Power 1 | . 1 1 1 1 Propulsion . | . . . . . Utility . | . . . . 1 Weapon 2 | . 1 2 2 2 Tool/Special . | . . . . . Unused Backups 1 | . . . . 1 Power . | . . . . . Propulsion . | . . . . . Utility . | . . . . . Weapon 1 | . . . . 1 Tool/Special . | . . . . . Average Slot Usage (%) 88 | . 90 98 88 87 Engine 9 | . 12 11 11 8 Leg 22 | . 27 33 22 20 Device 16 | . 7 20 22 19 Storage 10 | . 14 11 11 9 Processor 3 | . . . . 4 Energy Gun 14 | . 14 11 11 14 Energy Cannon 4 | . . . . 6 Ballistic Gun 6 | . 14 11 11 3 Peak Build Rating 29 | 6 7 9 8 29 Average Rating 15 | 4 6 8 8 20 On Entrance 5 | . 6 7 8 8 Avg Prop Armor Cover (%) . | . . . . . Naked Turns . | . . . . . Heaviest Build 30 | 11 13 14 14 30 Greatest Support 38 | 20 20 30 20 38 Greatest Overweight (x) 6 | 3 . . . 6 Average Overweight (x) . | . . . . . Largest Inventory Capacity 8 | 8 8 8 8 8 Average Capacity 7 | 7 8 8 8 8 Most Carried 8 | 2 6 4 3 8 Average Carried 4 | 1 3 3 3 5 Final Capacity 8 | 8 8 8 8 8 Final Carried 5 | 2 5 3 3 3 Class Distribution -------------------- 47% | Mutant 31% | Gunner 17% | Skirmisher 3% | Tank Dominant Class ---------------- Mutant | -10/Materials Mutant | -9/Materials Mutant | -9/Mines Gunner | -8/Materials Resources | -11 -10 -9 -9 -8 ----------- Run | Yrd Mat Mat Min Mat Matter Collected 717 | 175 79 . . 463 Remotely . | . . . . . Salvage Created 716 | . 120 . . 596 Parts 40 | . 14 . . 26 Haulers Intercepted . | . . . . . Recyclers Shooed 1 | . . . . 1 Parts Field Recycled . | . . . . . Retrieved Matter . | . . . . . Parts Self-Destructed . | . . . . . Prevented . | . . . . . Parts Restored . | . . . . . Kills | -11 -10 -9 -9 -8 ------- Run | Yrd Mat Mat Min Mat Combat Hostiles Destroyed 18 | . 5 . . 13 Guns 15 | . 5 . . 10 Cannons 3 | . . . . 3 Classes Destroyed 8 | . 2 . . 6 Builder 1 | . . . . 1 Recycler 1 | . . . . 1 Swarmer 6 | . 3 . . 3 Grunt 6 | . 2 . . 4 Duelist 1 | . . . . 1 Sentry 1 | . . . . 1 Specialist 2 | . . . . 2 Hunter 2 | . . . . 2 Best Kill Streak 5 | . 5 . . 4 Combat Bots Only 5 | . 5 . . 3 Max Kills in Single Turn 2 | . 2 . . 1 Gunslinging 1 | . 1 . . . Exploded . | . . . . . Melee . | . . . . . Uniques/NPCs Destroyed . | . . . . . Combat | -11 -10 -9 -9 -8 -------- Run | Yrd Mat Mat Min Mat Hostile Shots Fired 239 | . 44 19 4 172 Missed 64 | . 7 8 2 47 Hits 175 | . 37 11 2 125 Melee 9 | . . . . 9 Projectile 166 | . 37 11 2 116 Critical Strikes 8 | . 2 . . 6 Damage Taken 2417 | . 403 86 27 1901 Core 640 | . 62 7 17 554 Absorbed by Shields 79 | . . . . 79 Regen/Repaired (Parts) 61 | . . . . 61 Core Remaining (%) 89 | 100 75 . 94 . Volleys Fired 53 | . 17 . . 36 Largest 3 | . 2 . . 3 Hottest 179 | . 70 . . 179 Shots Fired 128 | . 34 . . 94 Gun 103 | . 34 . . 69 Cannon 25 | . . . . 25 Launcher . | . . . . . Special . | . . . . . Kinetic 26 | . 17 . . 9 Thermal 102 | . 17 . . 85 Explosive . | . . . . . Electromagnetic . | . . . . . Robot Hit Streak 15 | . 3 . . 15 Robot Miss Streak 5 | . 4 . . 5 Penetration Max . | . . . . . Secondary Targets 1 | . 1 . . . Max Gunslinging Chain 1 | . 1 . . . Shots Hit Robots 84 | . 17 . . 67 Core Hits 38 | . 8 . . 30 Critical Kills . | . . . . . Critical Parts Destroyed . | . . . . . Critical Strikes 1 | . . . . 1 Burn 1 | . . . . 1 Melee Attacks . | . . . . . Impact . | . . . . . Slashing . | . . . . . Piercing . | . . . . . Sneak Attacks . | . . . . . Combat Hostiles . | . . . . . Follow-up Attacks . | . . . . . Damage Inflicted 1580 | . 210 . . 1370 Guns 1179 | . 210 . . 969 Cannons 372 | . . . . 372 Explosions . | . . . . . Melee . | . . . . . Ramming 29 | . . . . 29 Kinetic 287 | . 126 . . 161 Thermal 1264 | . 84 . . 1180 Explosive . | . . . . . Electromagnetic . | . . . . . Impact . | . . . . . Slashing . | . . . . . Piercing . | . . . . . Highest Corruption 1 | . . . . 1 Average Corruption 1 | . . . . 1 Corruption Purged . | . . . . . Corruption Blocked . | . . . . . Effects 3 | . . . . 3 Message Errors 1 | . . . . 1 Data Loss (minor) 2 | . . . . 2 Overload Shots . | . . . . . Overflow Damage . | . . . . . Projectiles . | . . . . . Explosions . | . . . . . Melee . | . . . . . Knockbacks . | . . . . . Impact . | . . . . . Kinetic . | . . . . . Secondary . | . . . . . Self-Inflicted Damage . | . . . . . Shots . | . . . . . Rammed . | . . . . . Targets Rammed 7 | . . . . 7 Kicked 7 | . . . . 7 Crushed . | . . . . . Highest Temperature 574 | . 129 . . 574 Average Temperature 167 | . 64 . . 196 Received Heat Transfer 550 | . 159 . 15 376 Effects 9 | . . . . 9 Shutdowns 4 | . . . . 4 Energy Bleed 1 | . . . . 1 Matter Decay 2 | . . . . 2 Damage (minor) 1 | . . . . 1 Damage (core) 1 | . . . . 1 Siege Activations . | . . . . . Martial Activations . | . . . . . Shielding Activations . | . . . . . Robots Disrupted . | . . . . . Combat Hostiles . | . . . . . Robots Corrupted . | . . . . . Combat Hostiles . | . . . . . Parts Fried . | . . . . . Impact Corruptions . | . . . . . Robots Melted . | . . . . . Combat Hostiles . | . . . . . Parts Melted 6 | . . . . 6 Heat Transferred 2616 | . 235 . . 2381 Parts Sabotaged . | . . . . . Parts Stolen . | . . . . . Parts Stripped . | . . . . . Power Chain Reactions . | . . . . . Alert | -11 -10 -9 -9 -8 ------- Run | Yrd Mat Mat Min Mat Maximum Alert Level . | . . . . . Low Security (%) 100 | 100 100 100 100 100 Level 1 . | . . . . . Level 2 . | . . . . . Level 3 . | . . . . . Level 4 . | . . . . . Level 5 . | . . . . . High Security . | . . . . . Max Security . | . . . . . Peak Influence 72 | . 71 15 . 72 Initial 10 | . . 10 . . Average 21 | . 25 4 . 25 Influence Increases 487 | . 137 5 . 345 Destroy 0b10 Robot/C 360 | . 100 . . 260 Destroy 0b10 Robot/NC 10 | . . . . 10 Destroy Leader 70 | . 20 . . 50 Successful Hack 27 | . 15 5 . 7 Disable Machine 15 | . . . . 15 Destroy Structure 5 | . 2 . . 3 Influence Decreases 486 | . 111 31 . 344 Entered New Map 16 | . . 16 . . Time Decay 279 | . 80 15 . 184 Lost Part 191 | . 31 . . 160 Squads Dispatched 2 | . . . . 2 Investigation . | . . . . . Extermination . | . . . . . Reinforcement 2 | . . . . 2 Assault . | . . . . . Garrison . | . . . . . Intercept . | . . . . . Searches Triggered . | . . . . . Construction Impeded . | . . . . . Haulers Reinforced . | . . . . . Active Scanning Responses . | . . . . . Cargo Convoy Interrupts . | . . . . . Stealth | -11 -10 -9 -9 -8 --------- Run | Yrd Mat Mat Min Mat Distress Signals 1 | . . 1 . . Communications Jammed . | . . . . . Distress Signals . | . . . . . Times Spotted 35 | . 5 4 3 23 Peak Tracking Total 6 | . 4 4 3 6 Tactical Retreats 1 | . . . 1 . ECM-based Alert Blocks 2 | . . . 2 . Traps | -11 -10 -9 -9 -8 ------- Run | Yrd Mat Mat Min Mat Traps Triggered 1 | . . . . 1 Indirectly . | . . . . . Trap Hack Attempts . | . . . . . Triggered . | . . . . . Disarmed . | . . . . . Reprogrammed . | . . . . . Reused . | . . . . . Traps Extracted . | . . . . . Installed . | . . . . . Triggered . | . . . . . Machines | -11 -10 -9 -9 -8 ---------- Run | Yrd Mat Mat Min Mat Machines Disabled 1 | . . . . 1 Max in Single Turn 1 | . . . . 1 Machines Repaired . | . . . . . Machines Dismantled . | . . . . . Machines Sabotaged . | . . . . . Overloaded Fab Kills . | . . . . . Hacking | -11 -10 -9 -9 -8 --------- Run | Yrd Mat Mat Min Mat Machines Accessed 9 | . 2 1 . 6 Terminals 6 | . 2 1 . 3 Fabricators . | . . . . . Repair Stations 1 | . . . . 1 Recycling Units . | . . . . . Scanalyzers 1 | . . . . 1 Garrison Access 1 | . . . . 1 Total Hacks 26 | . 8 2 . 16 Successful 16 | . 4 1 . 11 Failed 9 | . 4 1 . 4 Catastrophic 1 | . . . . 1 Database Lockouts 1 | . . . . 1 Manual 1 | . . . . 1 Terminals 17 | . 8 2 . 7 Fabricators . | . . . . . Repair Stations 3 | . . . . 3 Recycling Units . | . . . . . Scanalyzers 5 | . . . . 5 Garrison Access 1 | . . . . 1 Terminal Hacks 11 | . 4 1 . 6 Record 5 | . . . . 5 Robot Analysis 1 | . 1 . . . Prototype ID Bank 1 | . 1 . . . Hauler Manifests 1 | . 1 . . . Zone Layout 3 | . 1 1 . 1 Fabricator Hacks . | . . . . . Repair Station Hacks 2 | . . . . 2 Scan Component 1 | . . . . 1 Repair 1 | . . . . 1 Recycling Unit Hacks . | . . . . . Scanalyzer 3 | . . . . 3 Insert Component 1 | . . . . 1 Analyze 1 | . . . . 1 Retrieve Study 1 | . . . . 1 Garrison Access Hacks . | . . . . . Unauthorized Hacks . | . . . . . Terminals . | . . . . . Fabricators . | . . . . . Repair Stations . | . . . . . Recycling Units . | . . . . . Scanalyzers . | . . . . . Garrison Access . | . . . . . Data Cores Recovered . | . . . . . Used . | . . . . . Hacking Detections 6 | . 2 1 . 3 Full Trace Events 1 | . . . . 1 Feedback Events . | . . . . . Feedback Blocked . | . . . . . Robot Schematics Acquired . | . . . . . Robots Built . | . . . . . Authchips . | . . . . . Time . | . . . . . Total Robot Build Rating . | . . . . . Part Schematics Acquired 1 | . . . . 1 Parts Built . | . . . . . Authchips . | . . . . . Time . | . . . . . Total Part Build Rating . | . . . . . Part Studies Acquired 1 | . . . . 1 Parts Repaired 1 | . . . . 1 Time 26 | . . . . 26 Parts Recycled . | . . . . . Recycled Matter . | . . . . . Retrieved Matter . | . . . . . Retrieved Components . | . . . . . Parts Scanalyzed 1 | . . . . 1 Part Schematics Acquired 1 | . . . . 1 Parts Damaged . | . . . . . Bothacking | -11 -10 -9 -9 -8 ------------ Run | Yrd Mat Mat Min Mat Used RIF Installer . | . . . . . Robots Hacked . | . . . . . Non-combat . | . . . . . Combat . | . . . . . Robot Hacks Applied . | . . . . . Relay Couplers Released . | . . . . . Fabnet Peak Effective % . | . . . . . Robots Rewired . | . . . . . Allies Hacked . | . . . . . Hacks Repelled . | . . . . . Allies | -11 -10 -9 -9 -8 -------- Run | Yrd Mat Mat Min Mat Total Allies . | . . . . . Largest Group . | . . . . . Highest-Rated Group . | . . . . . Highest-Rated Ally . | . . . . . Total Orders . | . . . . . Ally Attacks . | . . . . . Total Damage . | . . . . . Kills . | . . . . . Allies Corrupted . | . . . . . Allies Melted . | . . . . . Intel | -11 -10 -9 -9 -8 ------- Run | Yrd Mat Mat Min Mat Active Infowar (turns) 879 | . 125 67 20 667 Sensors 413 | . 76 67 20 250 Structural 49 | . 49 . . . Traps 349 | . . . . 349 ECM 496 | . . 66 20 410 Robot Analysis Total 1 | . 1 . . . Derelict Logs Recovered . | . . . . . Drone Launches . | . . . . . Drone Recoveries . | . . . . . Exploration | -11 -10 -9 -9 -8 ------------- Run | Yrd Mat Mat Min Mat Turns Passed 1055 | 59 220 67 20 689 Spaces Moved 582 | 38 127 55 17 345 Core 10 | 9 . . . 1 Treads . | . . . . . Legs 572 | 29 127 55 17 344 Wheels . | . . . . . Hover . | . . . . . Flight . | . . . . . Fastest Speed 50 | 50 120 120 120 97 Average Speed 125 | 129 120 120 120 128 Slowest Speed 350 | 200 120 120 120 350 Overloaded Moves . | . . . . . Propulsion Burnouts . | . . . . . Robots Hopped . | . . . . . Potential Cave-ins . | . . . . . Cave-ins Triggered . | . . . . . Exploration Rate (%) 17 | 4 27 8 14 35 Regions Visited 4 Branch Regions 1 Pre-discovered Areas . | . . . . . Known Exits Taken . | . . . . . Unknown Exits Taken 4 | 1 1 1 1 . Scrap Searched . | . . . . . Spaces Dug . | . . . . . Terrain Destroyed 1 | . . . . 1 Melee . | . . . . . Projectile 1 | . . . . 1 AOE . | . . . . . Terrain Rammed . | . . . . . Walls Destroyed . | . . . . . Machines Disabled . | . . . . . Actions | -11 -10 -9 -9 -8 --------- Run | Yrd Mat Mat Min Mat Total 789 | 45 158 56 16 514 Wait 79 | . 3 . . 76 Move 578 | 37 126 54 16 345 Hop . | . . . . . Pick Up 23 | 2 5 . . 16 Fast Attach 17 | 6 3 . . 8 Attach 19 | . 2 2 . 15 Detach 3 | . . . . 3 Swap 6 | . 2 . . 4 Drop 4 | . . . . 4 Fire 53 | . 17 . . 36 Melee . | . . . . . Ram . | . . . . . Kick 7 | . . . . 7 Crush . | . . . . . Escape Stasis . | . . . . . Rewire . | . . . . . Trap . | . . . . . Miscellaneous . | . . . . . Route ------- -11/Scrapyard -10/Materials -9/Materials -9/Mines -8/Materials (discovered 1 exit: [*Fac]) History --------- Turn | Location | Event 40 | -11/Scrapyard | Discovered new exit (range 13) 60 | -11/Scrapyard | Entered Materials 215 | -10/Materials | Lost 4 parts (1p1n1u1w) 252 | -10/Materials | Discovered new exit (range 5) 280 | -10/Materials | Entered another Materials area 280 | -9/Materials | Evolved 2 slots: Propulsion x1, Utility x1 302 | -9/Materials | Build established: Mutant 329 | -9/Materials | Discovered new exit (range 13) 347 | -9/Materials | Entered Mines 359 | -9/Mines | Discovered new exit (range 7) 365 | -9/Mines | Met a Derelict bent on vengeance 367 | -9/Mines | Entered Materials 367 | -8/Materials | Evolved 2 slots: Utility x1, Weapon x1 481 | -8/Materials | Central database locked down 632 | -8/Materials | Repaired Aluminum Leg+ 961 | -8/Materials | Core integrity fell below 50% 988 | -8/Materials | Core integrity fell below 20% 1042 | -8/Materials | Lost 12 parts (2p3n3u4w) 1056 | -8/Materials | Discovered new exit (range 4) 1056 | -8/Materials | Destroyed by H-61 Shepherd with Heavy Assault Cannon Last Messages --------------- 01014_ R-06 Scavenger collects Katana. 01014_ R-06 Scavenger destroyed. 01015_ Slug penetrates Material Processor. 01017_ Identified Hvy. Ion Engine. 01019_ H-55 Commando destroyed. 01026_ Acquired Imp. Aluminum Leg. 01029_ Acquired Imp. Ion Engine. 01032_ Acquired Imp. Heat Sink. 01034_ Acquired Aluminum Leg+. 01037_ Acquired 118 matter. 01039_ R-06 Scavenger collects Aluminum Leg+. 01040_ Acquired Pulse Rifle. [Achievement: Hydra] 01041_ Kicked R-06 Scavenger. 01051_ Hpw. Shotgun destroyed. 01054_ Trap Scanner destroyed. 01054_ Adv. Targeting Computer destroyed. 01054_ Critical hit (Blast). 01056_ EXIT=FOUND 01056_ Penetrated by Slug. Map ----- +----------------------------------------------------+ | | | | | | | | | | | | | | | | | | | | | | | | | ?????????????????????????????????????????????????? | | ?????????????????????????????????????????????????? | | ?????????????????????????????????????????????????? | | ??????????###########????????????????????????????? | | ??????????# #????????????????????????????? | | ??????????# """ #????????????????????????????? | | ??????????# """"" #????????????????????????????? | | ########??# """"" #????????????????????????????? | | #??# """"" #???????##???????????????????? | | # #### #??# """ #?????? #???????????????????? | | # #??# #??# #??????< #???????????????????? | | + #??# #??# #????? #???????????????????? | | # #?## ########/########## #######?????????????? | | # #?# @ ????????? | | # #?# % H ????????? | | # #?# % %% % ????????? | | # ####+#############+##### ####### ?????????? | | # # #??# = % !*#u #???????????????????? | | # # !#??# """%!% # #???????????????????? | | # # #??#"""=!% # +???????????????????? | | # # """ """ #??#""" ! # u#???????????????????? | | # # """ """ #??#""" # #???????????????????? | | # # """ """ #??# " " #? #???????????????????? | | # # #??# #? w#???????????????????? | | # # #??# #? #???????????????????? | | # ##########???###########? k#???????????????????? | | # #########???????????????? #???????????????????? | | #%# #????????????????? #???????????????????? | | # # #??????????????????????????????????????? | | # # * #??????????????????????????????????????? | | # # #??????????????????????????????????????? | | #%+ #??????????????????????????????????????? | | # #########??????????????????????????????????????? | | # ###????#???????????????????????????????????????? | | #????#???????????????????????????????????????? | | ######???????????????????????????????????????? | | +???????????????????????????????????????? | | "" ######???????????????????????????????????????? | +----------------------------------------------------+ Best States ------------- Heat Dissipation 58 Energy Generation 14 Energy Capacity 280 Matter Stores 300 Matter Capacity 300 Sight Range 16 Robot Scan Range 14 Terrain Scan Density 10 ECM Strength 1 Evasion (%) 55 Targeting Accuracy 8 Item Schematics ----------------- Ion Engine | -8/Materials | Scanalyzed Robot Schematics ------------------ None Fabricated ------------ Nothing Repaired ---------- Aluminum Leg | 32% | -8/Materials Studied --------- Aluminum Leg | -8/Materials | Hacked Alien Tech Used ----------------- None Achievements -------------- Hydra Item+ Part-time Mechanic Shopping List Sprinter Challenges ------------ None Game ------ Seed TitaniumSwordReplicator Manual? 0 Play Time 00:29:08 Cumulative 3.3 hours Start 2025.12.19 @ 19:42:24 End 2025.12.19 @ 20:13:34 Sessions 1 Manual Loads 0 Difficulty Rogue Special Mode None Game No. 7 Rogue 7 Adventurer 0 Explorer 0 Win Type - Total 0 Types 0/0/0/0/0/0/0/0/0/0 Lore% 2 Gallery% 5 Achievement% 8 Wizard Run 0 Options --------- Layout 1 ASCII 0 Keyboard 1 Movement Numpad Keybinds 0 Fullscreen 1 Font 24/Terminus Map View 50x40 Zoom Use 0% Tactical HUD 1 Map Filters NONE Filters NONE Steam 1 RUN: 8a39830f-ca8c-4679-9fa8-be5cc0bc2b4a